[Event "1.FrauenBL 2018-19"]
[Site "Berlin"]
[Date "2019.03.01"]
[Round "9"]
[White "Rapport, Jovana"]
[Black "Jelica, Mara"]
[Result "1/2-1/2"]
[ECO "D35"]
[WhiteElo "2388"]
[BlackElo "2147"]
[Annotator "NA"]
[PlyCount "95"]
[EventDate "2018.10.27"]
[EventType "team-tourn"]
[EventCountry "GER"]
[SourceTitle "playchess.com"]
[Source "ChessBase"]
[SourceQuality "1"]
[WhiteTeam "SK Schwaebisch Hall"]
[BlackTeam "SF Deizisau"]
[TimeControl "40/5400+30:1800+30"]

1. d4 {[%emt 0:00:04]} d5 {[%emt 0:00:04]} 2. Nf3 {[%emt 0:00:00]} Nf6 {[%emt 0:00:11]} 3. c4 {[%emt 0:00:44]} e6 {[%emt 0:00:49]} 4. cxd5 {[%emt 0:00:28]} exd5 {[%emt 0:00:07]} 5. Nc3 {[%emt 0:00:05]} c6 {[%emt 0:01:43]} 6. Bg5 {[%emt 0:01:03]} h6 {[%emt 0:00:51]} 7. Bh4 {[%emt 0:01:46]} Be7 {[%emt 0:00:14]} 8. e3 {[%emt 0:01:31]} O-O {[%emt 0:02:26]} 9. Bd3 {[%emt 0:02:44]} Be6 {[%emt 0:02:57]} 10. O-O {[%emt 0:03:55]} Nbd7 {[%emt 0:02:28]} 11. Rc1 {[%emt 0:07:39]} Ne4 {[%emt 0:11:22]} 12. Bxe7 {[%emt 0:03:35]} Qxe7 {[%emt 0:01:27]} 13. Ne5 {[%emt 0:11:41]} Nxc3 {[%emt 0:02:46]} 14. Rxc3 {[%emt 0:02:00]} Nxe5 {[%emt 0:01:10]} 15. dxe5 {[%emt 0:00:09]} f6 {[%emt 0:08:07]} 16. Qh5 {[%emt 0:02:50]} fxe5 {[%emt 0:02:33]} 17. Qxe5 {[%emt 0:00:07]} Qf6 {[%emt 0:01:04]} 18. Qg3 {[%emt 0:02:22]} Bf5 {[%emt 0:01:36]} 19. Be2 {[%emt 0:08:03]} Rae8 {[%emt 0:05:01]} 20. Rd1 {[%emt 0:04:56]} Be4 {[%emt 0:04:33]} 21. Rd4 {[%emt 0:05:05]} Re5 {[%emt 0:02:38]} 22. f3 {[%emt 0:03:39]} Bb1 {[%emt 0:03:38]} 23. Rf4 {[%emt 0:02:17]} Qe7 {[%emt 0:04:07]} 24. Rxf8+ {[%emt 0:01:04]} Kxf8 {[%emt 0:01:19]} 25. Qf4+ {[%emt 0:05:30]} Kg8 {[%emt 0:01:32]} 26. a3 {[%emt 0:00:55]} Bg6 {[%emt 0:02:23]} 27. b4 {[%emt 0:01:35]} Kh7 {[%emt 0:02:42]} 28. g4 {[%emt 0:04:53]} Re6 {[%emt 0:02:17]} 29. Kg2 {[%emt 0:00:49]} b6 {[%emt 0:03:45]} 30. Kg3 {[%emt 0:05:14]} Qd6 {[%emt 0:04:06]} 31. Bd1 {[%emt 0:03:53]} Kg8 {[%emt 0:04:36]} 32. Bb3 {[%emt 0:05:53]} Bf7 {[%emt 0:01:55]} 33. h4 {[%emt 0:03:21]} Kf8 {[%emt 0:00:51]} 34. Qxd6+ {[%emt 0:02:14]} Rxd6 {[%emt 0:00:06]} 35. Ba4 {[%emt 0:01:29]} Be8 {[%emt 0:00:33]} 36. g5 {[%emt 0:00:07]} hxg5 {[%emt 0:00:36]} 37. hxg5 {[%emt 0:00:01]} Ke7 {[%emt 0:00:57]} 38. f4 {[%emt 0:03:13]} Re6 {[%emt 0:08:22]} 39. Bb3 {[%emt 0:02:00]} Kd6 {[%emt 0:00:50]} 40. Rd3 {[%emt 0:01:00]} Bg6 {[%emt 0:01:05]} 41. Rc3 {[%emt 0:30:02]} Bf5 {[%emt 0:33:41]} 42. Kf2 {[%emt 0:00:00]} c5 {[%emt 0:00:00]} 43. Rc1 {[%emt 0:00:00]} Re8 {[%emt 0:00:00]} 44. Rd1 {[%emt 0:00:00]} Be4 {[%emt 0:00:00]} 45. Kg3 {[%emt 0:00:00]} Ke6 {[%emt 0:00:00]} 46. Rc1 {[%emt 0:00:00]} Kd6 {[%emt 0:00:00]} 47. Rd1 {[%emt 0:00:00]} Ke6 {[%emt 0:00:00]} 48. Rc1 {[%emt 0:00:00]} 1/2-1/2

[Event "1.FrauenBL 2018-19"]
[Site "Berlin"]
[Date "2019.03.01"]
[Round "9"]
[White "Majdan, Joanna"]
[Black "Santeramo, Alessia"]
[Result "1-0"]
[ECO "C64"]
[WhiteElo "2387"]
[BlackElo "2060"]
[Annotator "NA"]
[PlyCount "103"]
[EventDate "2018.10.27"]
[EventType "team-tourn"]
[EventCountry "GER"]
[SourceTitle "playchess.com"]
[Source "ChessBase"]
[SourceQuality "1"]
[WhiteTeam "Rodewischer SM"]
[BlackTeam "FC Bayern Muenchen"]
[TimeControl "40/5400+30:1800+30"]

1. e4 {[%emt 0:00:07]} e5 {[%emt 0:00:08]} 2. Nf3 {[%emt 0:00:25]} Nc6 {[%emt 0:00:08]} 3. Bb5 {[%emt 0:00:54]} Bc5 {[%emt 0:00:19]} 4. O-O {[%emt 0:01:32]} Nd4 {[%emt 0:00:11]} 5. Nxd4 {[%emt 0:00:06]} Bxd4 {[%emt 0:00:11]} 6. c3 {[%emt 0:00:58]} Bb6 {[%emt 0:00:12]} 7. d4 {[%emt 0:01:11]} c6 {[%emt 0:00:11]} 8. Ba4 {[%emt 0:00:44]} d6 {[%emt 0:00:18]} 9. Qd3 {[%emt 0:05:29]} Nf6 {[%emt 0:03:02]} 10. Bg5 {[%emt 0:01:38]} h6 {[%emt 0:05:36]} 11. Bh4 {[%emt 0:00:05]} O-O {[%emt 0:01:37]} 12. Nd2 {[%emt 0:02:07]} Re8 {[%emt 0:08:27]} 13. Rae1 {[%emt 0:06:25]} g5 {[%emt 0:09:00]} 14. Bg3 {[%emt 0:00:41]} Nh5 {[%emt 0:00:14]} 15. Nc4 {[%emt 0:02:18]} Bc7 {[%emt 0:03:10]} 16. Bc2 {[%emt 0:05:04]} Nf4 {[%emt 0:06:08]} 17. Bxf4 {[%emt 0:08:38]} gxf4 {[%emt 0:00:11]} 18. a4 {[%emt 0:02:07]} a6 {[%emt 0:07:52]} 19. b4 {[%emt 0:02:20]} b5 {[%emt 0:02:32]} 20. Nd2 {[%emt 0:01:10]} Qg5 {[%emt 0:06:08]} 21. Ra1 {[%emt 0:03:41]} Kh8 {[%emt 0:10:03]} 22. Kh1 {[%emt 0:01:17]} Rg8 {[%emt 0:02:46]} 23. Rg1 {[%emt 0:02:14]} Bg4 {[%emt 0:00:38]} 24. Bb3 {[%emt 0:03:13]} Qh5 {[%emt 0:06:30]} 25. f3 {[%emt 0:07:53]} Be6 {[%emt 0:01:38]} 26. axb5 {[%emt 0:02:56]} Bxb3 {[%emt 0:03:51]} 27. Nxb3 axb5 {[%emt 0:05:13]} 28. Na5 {[%emt 0:02:36]} Rg5 {[%emt 0:05:37]} 29. Rgd1 {[%emt 0:04:28]} Qg6 {[%emt 0:06:11]} 30. Qf1 {[%emt 0:08:36]} c5 {[%emt 0:01:48]} 31. dxe5 {[%emt 0:07:13]} dxe5 {[%emt 0:00:21]} 32. Nb7 {[%emt 0:01:25]} Rg8 {[%emt 0:01:48]} 33. Ra2 {[%emt 0:01:29]} c4 {[%emt 0:02:11]} 34. Rad2 {[%emt 0:01:13]} Qc6 {[%emt 0:01:45]} 35. Nc5 {[%emt 0:01:30]} R5g6 {[%emt 0:00:24]} 36. Qf2 {[%emt 0:02:55]} Bb6 {[%emt 0:00:27]} 37. Rd5 {[%emt 0:01:56]} Qa8 {[%emt 0:01:06]} 38. Rxe5 {[%emt 0:04:33]} Rxg2 {[%emt 0:00:11]} 39. Qh4 {[%emt 0:01:34]} R2g6 {[%emt 0:00:28]} 40. Rh5 {[%emt 0:02:45]} Kh7 {[%emt 0:00:00]} 41. Qf2 {[%emt 0:00:46]} Rg5 {[%emt 0:09:12]} 42. Rh4 {[%emt 0:02:56]} Rd8 {[%emt 0:04:12]} 43. Re1 {[%emt 0:01:28]} Qa3 {[%emt 0:03:03]} 44. Rxf4 {[%emt 0:01:09]} Qxc3 {[%emt 0:00:18]} 45. Rxf7+ {[%emt 0:01:15]} Kg8 {[%emt 0:00:09]} 46. Rf5 {[%emt 0:00:43]} Rd2 {[%emt 0:09:47]} 47. Rxg5+ {[%emt 0:01:11]} hxg5 {[%emt 0:00:03]} 48. Qg3 {[%emt 0:00:47]} Kf7 {[%emt 0:01:05]} 49. e5 {[%emt 0:01:10]} Bxc5 {[%emt 0:03:34]} 50. e6+ {[%emt 0:01:38]} Ke8 {[%emt 0:02:33]} 51. bxc5 {[%emt 0:00:05]} Rd5 {[%emt 0:01:02]} 52. e7 {[%emt 0:03:54]} 1-0

[Event "1.FrauenBL 2018-19"]
[Site "Berlin"]
[Date "2019.03.01"]
[Round "9.1"]
[White "Kosteniuk, Alexandra"]
[Black "Georgescu, Lena"]
[Result "1-0"]
[ECO "C60"]
[WhiteElo "2545"]
[BlackElo "2185"]
[Annotator "RC"]
[PlyCount "77"]
[EventDate "2018.10.27"]
[EventType "team-tourn"]
[EventCountry "GER"]
[SourceTitle "playchess.com"]
[Source "ChessBase"]
[SourceQuality "1"]
[WhiteTeam "OSG Baden-Baden"]
[BlackTeam "Karlsruher SF"]
[TimeControl "40/5400+30:1800+30"]

1. e4 {[%emt 0:00:04]} e5 {[%emt 0:00:06]} 2. Nf3 {[%emt 0:00:05]} Nc6 {[%emt 0:00:00]} 3. Bb5 {[%emt 0:00:04]} g6 {[%emt 0:00:12]} 4. d4 {[%emt 0:00:20]} exd4 {[%emt 0:00:11]} 5. Bg5 {[%emt 0:00:21]} Be7 {[%emt 0:00:10]} 6. Bxe7 {[%emt 0:00:40]} Qxe7 {[%emt 0:00:06]} 7. Bxc6 {[%emt 0:00:04]} dxc6 {[%emt 0:00:08]} 8. Qxd4 {[%emt 0:00:15]} Nf6 {[%emt 0:00:20]} 9. Nc3 {[%emt 0:00:11]} Bg4 {[%emt 0:00:22]} 10. Nd2 {[%emt 0:00:00]} c5 {[%emt 0:00:12]} 11. Qe3 {[%emt 0:00:22]} O-O-O {[%emt 0:00:51]} 12. h3 {[%emt 0:00:09]} Bd7 {[%emt 0:00:29]} 13. O-O-O {[%emt 0:00:16]} Bc6 {[%emt 0:00:31]} 14. f3 {[%emt 0:00:09]} Nd5 {[%emt 0:07:57]} 15. Nxd5 {[%emt 0:07:37]} Rxd5 {[%emt 0:00:06]} 16. Qc3 {[%emt 0:24:48]} Rdd8 {[%emt 0:04:25]} 17. h4 {[%emt 0:00:00]} h5 {[%emt 0:06:19]} 18. Nc4 {[%emt 0:00:00]} b6 {[%emt 0:09:47]} 19. Qe5 {[%emt 0:00:00]} Qxe5 {[%emt 0:14:27]} 20. Nxe5 {[%emt 0:11:52]} Be8 {[%emt 0:03:12]} 21. b3 {[%emt 0:05:19]} f6 {[%emt 0:03:58]} 22. Rxd8+ {[%emt 0:04:41]} Kxd8 {[%emt 0:00:05]} 23. Nd3 {[%emt 0:00:10]} Ke7 {[%emt 0:03:34]} 24. Kd2 {[%emt 0:01:35]} Bf7 {[%emt 0:01:53]} 25. c4 {[%emt 0:03:23]} Rd8 {[%emt 0:02:34]} 26. Ke3 {[%emt 0:03:23]} a5 {[%emt 0:10:39]} 27. a4 {[%emt 0:00:32]} c6 {[%emt 0:08:34]} 28. g4 {[%emt 0:02:07]} hxg4 {[%emt 0:06:05]} 29. fxg4 {[%emt 0:00:10]} b5 {[%emt 0:06:48]} 30. Nxc5 {[%emt 0:05:44]} bxc4 {[%emt 0:01:15]} 31. bxc4 {[%emt 0:00:05]} Bxc4 {[%emt 0:06:11]} 32. Rb1 {[%emt 0:00:25]} Be6 {[%emt 0:02:02]} 33. Rb7+ {[%emt 0:01:17]} Kd6 {[%emt 0:00:24]} 34. Kd4 {[%emt 0:00:49]} Rh8 {[%emt 0:00:00]} 35. g5 {[%emt 0:29:13]} Rxh4 {[%emt 0:00:00]} 36. gxf6 {[%emt 0:00:00]} Rf4 {[%emt 0:03:53]} 37. f7 {[%emt 0:00:00]} g5 {[%emt 0:00:42]} 38. f8=Q+ {[%emt 0:00:00]} Rxf8 {[%emt 0:00:04]} 39. e5# {[%emt 0:00:00] --- [%clk ] Ke4+ [%clk ]} 1-0

[Event "1.FrauenBL 2018-19"]
[Site "Berlin"]
[Date "2019.03.01"]
[Round "9.1"]
[White "Melamed, Tatjana"]
[Black "Bluhm, Sonja Maria"]
[Result "1-0"]
[ECO "C95"]
[WhiteElo "2359"]
[BlackElo "2222"]
[Annotator "NA"]
[PlyCount "95"]
[EventDate "2018.10.27"]
[EventType "team-tourn"]
[EventCountry "GER"]
[SourceTitle "playchess.com"]
[Source "ChessBase"]
[SourceQuality "1"]
[WhiteTeam "Bad Koenigshofen"]
[BlackTeam "Hofheim"]
[TimeControl "40/5400+30:1800+30"]

1. e4 e5 2. Nf3 {[%emt 0:01:24]} Nc6 {[%emt 0:00:43]} 3. Bb5 a6 4. Ba4 {[%emt 0:02:18]} Nf6 {[%emt 0:00:44]} 5. O-O Be7 6. Re1 b5 7. Bb3 {[%emt 0:03:34]} d6 {[%emt 0:02:19]} 8. c3 O-O 9. h3 {[%emt 0:01:22]} Nb8 {[%emt 0:00:47]} 10. d4 Nbd7 11. c4 {[%emt 0:04:26]} c6 {[%emt 0:02:22]} 12. Nc3 Qc7 {[%emt 0:00:01]} 13. a3 {[%emt 0:09:00]} exd4 {[%emt 0:02:39]} 14. Nxd4 {[%emt 0:00:51]} Ne5 {[%emt 0:00:33]} 15. cxb5 {[%emt 0:02:25]} axb5 {[%emt 0:00:11]} 16. Bg5 {[%emt 0:02:38]} h6 {[%emt 0:06:34]} 17. Bh4 {[%emt 0:02:58]} b4 {[%emt 0:29:57]} 18. axb4 {[%emt 0:09:47]} Rxa1 {[%emt 0:00:24]} 19. Qxa1 {[%emt 0:00:04]} Nd3 {[%emt 0:00:16]} 20. Re3 {[%emt 0:04:18]} Nxb4 {[%emt 0:00:26]} 21. Qa4 {[%emt 0:00:52]} Qb6 {[%emt 0:04:37]} 22. Nf5 {[%emt 0:13:47]} Bxf5 {[%emt 0:05:48]} 23. exf5 {[%emt 0:00:13]} Bd8 {[%emt 0:00:51]} 24. Bg3 {[%emt 0:06:21]} Bc7 {[%emt 0:15:25]} 25. Re7 {[%emt 0:02:55]} Nh5 {[%emt 0:04:17]} 26. Rxc7 {[%emt 0:10:02]} Qxc7 {[%emt 0:06:43]} 27. Qxb4 {[%emt 0:00:09]} Nxg3 {[%emt 0:00:05]} 28. Qg4 {[%emt 0:00:52]} Nxf5 {[%emt 0:01:28]} 29. Qxf5 {[%emt 0:00:18]} d5 {[%emt 0:00:35]} 30. Bc2 {[%emt 0:06:07]} g6 {[%emt 0:00:53]} 31. Qg4 {[%emt 0:00:27]} Re8 {[%emt 0:00:28]} 32. g3 {[%emt 0:00:33]} h5 {[%emt 0:01:09]} 33. Qa4 {[%emt 0:01:45]} Re6 {[%emt 0:01:33]} 34. Bd3 {[%emt 0:01:29]} Qe5 {[%emt 0:01:32]} 35. Kg2 {[%emt 0:01:16]} Kg7 {[%emt 0:04:21]} 36. Qb4 {[%emt 0:02:25]} Re8 {[%emt 0:01:48]} 37. Qc5 {[%emt 0:01:33]} Re6 {[%emt 0:01:02]} 38. h4 {[%emt 0:00:32]} Qe1 {[%emt 0:02:11]} 39. Qd4+ {[%emt 0:01:19]} Kh7 {[%emt 0:02:49]} 40. b4 {[%emt 0:02:05]} Qe5 {[%emt 0:03:04]} 41. Ne2 {[%emt 0:32:37]} Qd6 {[%emt 0:09:01]} 42. Nf4 {[%emt 0:00:00]} Re5 {[%emt 0:00:52]} 43. Qb6 {[%emt 0:00:00]} d4 {[%emt 0:03:07]} 44. b5 {[%emt 0:00:00]} Rc5 {[%emt 0:01:58]} 45. Qa7 {[%emt 0:00:00]} Kg8 {[%emt 0:03:31]} 46. b6 {[%emt 0:00:00]} Re5 {[%emt 0:01:34]} 47. Bc4 {[%emt 0:00:00]} Re7 {[%emt 0:00:49]} 48. b7 {[%emt 0:00:00]} 1-0

[Event "1.FrauenBL 2018-19"]
[Site "Berlin"]
[Date "2019.03.01"]
[Round "9.1"]
[White "Schenk, Stefanie"]
[Black "Movsesian, Julia"]
[Result "1/2-1/2"]
[ECO "A08"]
[WhiteElo "2057"]
[BlackElo "2302"]
[Annotator "NA"]
[PlyCount "82"]
[EventDate "2018.10.27"]
[EventType "team-tourn"]
[EventCountry "GER"]
[SourceTitle "playchess.com"]
[Source "ChessBase"]
[SourceQuality "1"]
[WhiteTeam "FC Bayern Muenchen"]
[BlackTeam "Rodewischer SM"]
[TimeControl "40/5400+30:1800+30"]

1. Nf3 {[%emt 0:00:02]} d5 {[%emt 0:00:00]} 2. g3 {[%emt 0:00:05]} g6 {[%emt 0:00:57]} 3. Bg2 {[%emt 0:00:05]} Bg7 {[%emt 0:00:00]} 4. O-O {[%emt 0:00:03]} Nf6 {[%emt 0:00:24]} 5. d3 {[%emt 0:01:06]} c5 {[%emt 0:00:34]} 6. Nbd2 {[%emt 0:00:00]} Nc6 {[%emt 0:00:16]} 7. e4 {[%emt 0:00:31]} O-O {[%emt 0:00:00]} 8. c3 {[%emt 0:05:14]} e6 {[%emt 0:03:56]} 9. Re1 {[%emt 0:03:49]} a5 {[%emt 0:00:28]} 10. a4 {[%emt 0:06:15]} b6 {[%emt 0:10:05]} 11. e5 {[%emt 0:00:00]} Ng4 {[%emt 0:00:00]} 12. d4 {[%emt 0:13:32]} cxd4 {[%emt 0:00:00]} 13. cxd4 {[%emt 0:00:00]} f6 {[%emt 0:00:00]} 14. h3 {[%emt 0:08:11]} Nh6 {[%emt 0:10:44]} 15. Nf1 {[%emt 0:00:00]} Nf7 {[%emt 0:18:08]} 16. exf6 {[%emt 0:10:52]} Qxf6 {[%emt 0:03:43]} 17. Be3 {[%emt 0:00:00]} Nd6 {[%emt 0:00:00]} 18. N1h2 {[%emt 0:08:16]} Nf5 {[%emt 0:08:16]} 19. Ng4 {[%emt 0:06:30]} Qf7 {[%emt 0:06:30]} 20. Rc1 {[%emt 0:04:25]} Bd7 {[%emt 0:00:00]} 21. Qd2 {[%emt 0:06:28]} Rac8 {[%emt 0:10:53]} 22. b3 {[%emt 0:04:23]} Kh8 {[%emt 0:00:00]} 23. Nge5 {[%emt 0:01:59]} Nxe5 {[%emt 0:06:22]} 24. Nxe5 {[%emt 0:00:00]} Bxe5 {[%emt 0:00:00]} 25. dxe5 {[%emt 0:00:00]} Nxe3 {[%emt 0:00:33]} 26. Qxe3 {[%emt 0:00:44]} b5 {[%emt 0:00:00]} 27. Rxc8 {[%emt 0:04:04]} Rxc8 {[%emt 0:04:15]} 28. Qa7 {[%emt 0:01:12]} bxa4 {[%emt 0:00:00]} 29. bxa4 {[%emt 0:00:08]} Qe8 {[%emt 0:01:20]} 30. Qxa5 {[%emt 0:00:00]} Bxa4 {[%emt 0:00:00]} 31. h4 {[%emt 0:03:52]} Bd7 {[%emt 0:03:39]} 32. Qd2 {[%emt 0:00:26]} Qf8 {[%emt 0:06:50]} 33. Rc1 {[%emt 0:00:18]} Rxc1+ {[%emt 0:02:44]} 34. Qxc1 {[%emt 0:00:01]} Kg8 {[%emt 0:00:44]} 35. h5 {[%emt 0:02:04]} Qf5 {[%emt 0:04:25]} 36. Qc7 {[%emt 0:02:10]} Qf7 {[%emt 0:01:02]} 37. hxg6 {[%emt 0:01:26]} hxg6 {[%emt 0:00:10]} 38. Qd8+ {[%emt 0:08:47]} Qe8 {[%emt 0:00:00]} 39. Qf6 {[%emt 0:00:00]} Qf7 {[%emt 0:01:00]} 40. Qd8+ {[%emt 0:00:00]} Qe8 {[%emt 0:00:41]} 41. Qf6 {[%emt 0:28:27]} Qf7 1/2-1/2

[Event "1.FrauenBL 2018-19"]
[Site "Berlin"]
[Date "2019.03.01"]
[Round "9.2"]
[White "Muetsch, Annmarie"]
[Black "Stefanova, Antoaneta"]
[Result "0-1"]
[ECO "B15"]
[WhiteElo "2249"]
[BlackElo "2493"]
[Annotator "ChessBase"]
[PlyCount "76"]
[EventDate "2018.10.27"]
[EventType "team-tourn"]
[EventCountry "GER"]
[SourceTitle "playchess.com"]
[Source "ChessBase"]
[SourceQuality "1"]
[WhiteTeam "Karlsruher SF"]
[BlackTeam "OSG Baden-Baden"]
[TimeControl "40/5400+30:1800+30"]

1. e4 {[%emt 0:00:04]} c6 {[%emt 0:00:19]} 2. d4 {[%emt 0:00:13]} d5 {[%emt 0:00:05]} 3. Nd2 {[%emt 0:00:06]} dxe4 {[%emt 0:00:13]} 4. Nxe4 {[%emt 0:00:17]} Nf6 {[%emt 0:00:03]} 5. Nxf6+ {[%emt 0:00:00]} exf6 {[%emt 0:00:05]} 6. c3 {[%emt 0:00:06]} Bd6 {[%emt 0:00:52]} 7. Bd3 {[%emt 0:00:15]} O-O {[%emt 0:00:38]} 8. Qc2 {[%emt 0:00:17]} Re8+ {[%emt 0:00:41]} 9. Ne2 {[%emt 0:00:08]} h5 {[%emt 0:00:06]} 10. Be3 {[%emt 0:00:34]} Nd7 {[%emt 0:02:17]} 11. O-O-O {[%emt 0:01:01]} Nf8 {[%emt 0:00:46]} 12. Kb1 {[%emt 0:01:49]} Be6 {[%emt 0:03:12]} 13. Ng3 {[%emt 0:07:48]} g6 {[%emt 0:04:37]} 14. Ne4 {[%emt 0:07:27]} Be7 {[%emt 0:01:50]} 15. Rhe1 {[%emt 0:10:41]} f5 {[%emt 0:12:42]} 16. Nc5 {[%emt 0:09:09]} Bc8 {[%emt 0:12:57]} 17. Bc4 {[%emt 0:11:16]} b5 {[%emt 0:04:40]} 18. Bd3 {[%emt 0:06:43]} Ne6 {[%emt 0:07:30]} 19. Nb3 {[%emt 0:07:54]} a5 {[%emt 0:04:23]} 20. f3 {[%emt 0:05:26]} a4 {[%emt 0:03:28]} 21. Nc1 {[%emt 0:00:50]} b4 {[%emt 0:05:00]} 22. Bc4 {[%emt 0:02:08]} Rb8 {[%emt 0:07:49]} 23. Nd3 {[%emt 0:04:03]} bxc3 {[%emt 0:06:14]} 24. Qxc3 {[%emt 0:00:17]} Bd6 {[%emt 0:05:44]} 25. g3 {[%emt 0:02:42]} Qf6 {[%emt 0:00:47]} 26. Qc2 {[%emt 0:03:51]} a3 {[%emt 0:02:30]} 27. b3 {[%emt 0:01:00]} Ra8 {[%emt 0:05:36]} 28. Qc1 {[%emt 0:10:17]} Ba6 {[%emt 0:02:07]} 29. Ne5 {[%emt 0:03:51]} Bxc4 {[%emt 0:02:47]} 30. Nxc4 {[%emt 0:00:05]} Bb4 {[%emt 0:00:18]} 31. Rf1 {[%emt 0:03:29]} Red8 {[%emt 0:02:09]} 32. Ne5 {[%emt 0:01:19]} c5 {[%emt 0:00:26]} 33. Nc6 {[%emt 0:00:26]} cxd4 {[%emt 0:00:26]} 34. Nxd8 {[%emt 0:01:13]} dxe3 {[%emt 0:00:43]} 35. Nxe6 {[%emt 0:00:29]} Qxe6 {[%emt 0:00:47]} 36. Rfe1 {[%emt 0:00:38]} e2 {[%emt 0:01:06]} 37. Rd4 {[%emt 0:00:31]} Bxe1 {[%emt 0:02:00]} 38. Qxe1 {[%emt 0:00:05]} Qe3 {[%emt 0:00:37]} 0-1

[Event "1.FrauenBL 2018-19"]
[Site "Berlin"]
[Date "2019.03.01"]
[Round "9.2"]
[White "Warakomska, Anna"]
[Black "Vidonyak, Nellya"]
[Result "0-1"]
[ECO "C41"]
[WhiteElo "2214"]
[BlackElo "2111"]
[Annotator "NA"]
[PlyCount "148"]
[EventDate "2018.10.27"]
[EventType "team-tourn"]
[EventCountry "GER"]
[SourceTitle "playchess.com"]
[Source "ChessBase"]
[SourceQuality "1"]
[WhiteTeam "Rodewischer SM"]
[BlackTeam "FC Bayern Muenchen"]
[TimeControl "40/5400+30:1800+30"]

1. e4 {[%emt 0:00:07]} d6 {[%emt 0:00:13]} 2. d4 {[%emt 0:00:04]} Nf6 {[%emt 0:00:09]} 3. Nc3 {[%emt 0:00:05]} e5 {[%emt 0:00:40]} 4. Nf3 {[%emt 0:00:34]} Nbd7 {[%emt 0:00:13]} 5. Bc4 {[%emt 0:00:42]} Be7 {[%emt 0:00:08]} 6. a4 {[%emt 0:00:28]} O-O {[%emt 0:02:17]} 7. O-O {[%emt 0:00:25]} c6 {[%emt 0:00:24]} 8. h3 {[%emt 0:00:39]} b6 {[%emt 0:03:03]} 9. Qe2 {[%emt 0:01:53]} Bb7 {[%emt 0:03:06]} 10. Rd1 {[%emt 0:01:40]} Qc7 {[%emt 0:00:25]} 11. Ba2 {[%emt 0:01:25]} a6 {[%emt 0:04:36]} 12. Be3 {[%emt 0:02:57]} b5 {[%emt 0:10:12]} 13. axb5 {[%emt 0:01:31]} axb5 {[%emt 0:00:28]} 14. b4 {[%emt 0:05:36]} Rac8 {[%emt 0:10:19]} 15. Bb3 {[%emt 0:05:15]} Qb8 {[%emt 0:05:44]} 16. d5 {[%emt 0:08:12]} cxd5 {[%emt 0:12:41]} 17. Nxd5 {[%emt 0:02:52]} Bxd5 {[%emt 0:04:40]} 18. Bxd5 {[%emt 0:00:35]} Nb6 {[%emt 0:02:20]} 19. Bxb6 {[%emt 0:08:03]} Qxb6 {[%emt 0:00:02]} 20. Ra5 {[%emt 0:01:56]} Rb8 {[%emt 0:10:05]} 21. Rda1 {[%emt 0:08:30]} Nxd5 {[%emt 0:03:40]} 22. exd5 {[%emt 0:04:54]} Rfc8 {[%emt 0:00:42]} 23. Ra6 {[%emt 0:01:54]} Qd8 {[%emt 0:01:10]} 24. R1a5 {[%emt 0:02:09]} Qe8 {[%emt 0:02:52]} 25. Ra3 {[%emt 0:11:30]} f5 {[%emt 0:06:15]} 26. Ra7 {[%emt 0:03:50]} Bf6 {[%emt 0:01:22]} 27. Qd2 {[%emt 0:03:22]} f4 {[%emt 0:06:28]} 28. Ne1 {[%emt 0:04:33]} Rc4 {[%emt 0:03:47]} 29. R3a6 {[%emt 0:06:08]} Rd4 {[%emt 0:00:57]} 30. Qe2 {[%emt 0:00:03]} Rd8 {[%emt 0:02:55]} 31. Rc7 {[%emt 0:02:56]} e4 {[%emt 0:01:12]} 32. c3 {[%emt 0:05:18]} Rxd5 {[%emt 0:00:08]} 33. c4 {[%emt 0:00:54]} Rd4 {[%emt 0:00:39]} 34. cxb5 {[%emt 0:00:41]} Rxb4 {[%emt 0:00:37]} 35. b6 {[%emt 0:00:55]} Rb8 {[%emt 0:01:07]} 36. Nc2 {[%emt 0:03:45]} f3 {[%emt 0:00:40]} 37. Qe3 {[%emt 0:01:06]} Rb1+ {[%emt 0:00:14]} 38. Kh2 {[%emt 0:00:05]} fxg2 {[%emt 0:00:23]} 39. Kxg2 {[%emt 0:00:07]} Qg6+ {[%emt 0:00:19]} 40. Qg3 {[%emt 0:00:05]} Qxg3+ {[%emt 0:00:44]} 41. Kxg3 {[%emt 0:30:49]} Be5+ {[%emt 0:07:36]} 42. f4 {[%emt 0:00:00]} exf3+ 43. Kxf3 R1xb6 {[%emt 0:01:57]} 44. Rxb6 {[%emt 0:00:00]} Rxb6 {[%emt 0:00:54]} 45. Ke4 {[%emt 0:00:00]} Rb3 {[%emt 0:04:18]} 46. Ne3 {[%emt 0:00:00]} d5+ {[%emt 0:05:03]} 47. Kxe5 {[%emt 0:00:00]} Rxe3+ {[%emt 0:00:05]} 48. Kxd5 {[%emt 0:00:00]} Rxh3 {[%emt 0:00:47]} 49. Ke4 {[%emt 0:00:00]} Rh4+ {[%emt 0:00:40]} 50. Kf5 {[%emt 0:00:00]} Rh5+ {[%emt 0:01:09]} 51. Kg4 {[%emt 0:00:00]} Re5 {[%emt 0:00:27]} 52. Ra7 {[%emt 0:00:00]} Kf8 {[%emt 0:00:33]} 53. Rb7 {[%emt 0:00:00]} Re7 {[%emt 0:00:31]} 54. Rb6 {[%emt 0:00:00]} Kf7 {[%emt 0:00:09]} 55. Ra6 {[%emt 0:00:00]} Re6 {[%emt 0:00:26]} 56. Ra5 {[%emt 0:00:00]} Rb6 {[%emt 0:02:18]} 57. Rc5 {[%emt 0:00:00]} Kf6 {[%emt 0:01:04]} 58. Rf5+ {[%emt 0:00:00]} Ke6 {[%emt 0:00:11]} 59. Ra5 {[%emt 0:00:00]} Rb4+ {[%emt 0:01:20]} 60. Kg5 {[%emt 0:00:00]} Rd4 {[%emt 0:00:41]} 61. Ra6+ {[%emt 0:00:00]} Rd6 {[%emt 0:00:08]} 62. Ra7 {[%emt 0:00:00]} Rd5+ {[%emt 0:00:18]} 63. Kh4 {[%emt 0:00:00]} Kf6 {[%emt 0:00:48]} 64. Rb7 {[%emt 0:00:00]} Rd4+ {[%emt 0:00:16]} 65. Kg3 {[%emt 0:00:00]} h5 {[%emt 0:02:08]} 66. Rb6+ {[%emt 0:00:00]} Kg5 {[%emt 0:00:12]} 67. Rb5+ {[%emt 0:00:00]} Kh6 {[%emt 0:00:06]} 68. Ra5 {[%emt 0:00:00]} h4+ {[%emt 0:00:35]} 69. Kh3 {[%emt 0:00:00]} g5 {[%emt 0:01:40]} 70. Ra8 {[%emt 0:00:00]} Rd3+ {[%emt 0:00:25]} 71. Kg4 {[%emt 0:00:00]} Rg3+ {[%emt 0:01:23]} 72. Kf5 {[%emt 0:00:00]} h3 {[%emt 0:01:07]} 73. Rb8 {[%emt 0:00:05]} g4 {[%emt 0:01:47]} 74. Ra8 {[%emt 0:06:26]} Rg2 {[%emt 0:00:24]} 0-1